[Event "Titled Tuesday Blitz November 15 Late 2022"]
[White "Freile Martin, Javier"]
[Black "Rorrer, Grayson"]
[WhiteFideId "3600165"]
[BlackFideId "30944996"]
[WhiteElo "2322"]
[BlackElo "2130"]
[Result "0-1"]
[Round "06"]
[TimeControl "180+1"]
[Date "2022.11.16"]
[WhiteClock "0:00:07"]
[BlackClock "0:01:02"]

1. c4 {[%clk 0:03:00]}  e5 {[%clk 0:02:57]} 2. Nc3 {[%clk 0:03:00]}  Bb4 {[%clk 0:02:57]} 3. Nd5 {[%clk 0:02:58]}  a5 {[%clk 0:02:58]} 4. a3 {[%clk 0:02:56]}  Bc5 {[%clk 0:02:57]} 5. e3 {[%clk 0:02:55]}  c6 {[%clk 0:02:56]} 6. Nc3 {[%clk 0:02:54]}  d6 {[%clk 0:02:57]} 7. Nf3 {[%clk 0:02:53]}  Nd7 {[%clk 0:02:56]} 8. d4 {[%clk 0:02:53]}  Ba7 {[%clk 0:02:56]} 9. b3 {[%clk 0:02:51]}  Ngf6 {[%clk 0:02:55]} 10. Bb2 {[%clk 0:02:51]}  O-O {[%clk 0:02:55]} 11. Be2 {[%clk 0:02:49]}  Qe7 {[%clk 0:02:55]} 12. O-O {[%clk 0:02:48]}  Re8 {[%clk 0:02:52]} 13. dxe5 {[%clk 0:02:44]}  dxe5 {[%clk 0:02:52]} 14. Qc2 {[%clk 0:02:43]}  Nf8 {[%clk 0:02:52]} 15. Rad1 {[%clk 0:02:38]}  Bg4 {[%clk 0:02:52]} 16. h3 {[%clk 0:02:37]}  Bh5 {[%clk 0:02:52]} 17. Nh4 {[%clk 0:02:35]}  Bxe2 {[%clk 0:02:40]} 18. Qxe2 {[%clk 0:02:33]}  Ng6 {[%clk 0:02:36]} 19. Nf5 {[%clk 0:02:31]}  Qe6 {[%clk 0:02:32]} 20. g4 {[%clk 0:02:27]}  Bc5 {[%clk 0:02:28]} 21. Qf3 {[%clk 0:02:24]}  Bf8 {[%clk 0:02:21]} 22. Ne4 {[%clk 0:02:21]}  a4 {[%clk 0:01:52]} 23. b4 {[%clk 0:02:18]}  Rad8 {[%clk 0:01:44]} 24. Nh6+ {[%clk 0:02:14]}  Kh8 {[%clk 0:01:37]} 25. Nxf6 {[%clk 0:02:11]}  gxf6 {[%clk 0:01:32]} 26. Qf5 {[%clk 0:01:46]}  Bxh6 {[%clk 0:01:27]} 27. Qc2 {[%clk 0:01:09]}  Bg7 {[%clk 0:01:17]} 28. c5 {[%clk 0:00:56]}  Rd5 {[%clk 0:01:14]} 29. Qxa4 {[%clk 0:00:54]}  Rxd1 {[%clk 0:01:06]} 30. Qxd1 {[%clk 0:00:53]}  f5 {[%clk 0:01:07]} 31. Qf3 {[%clk 0:00:43]}  fxg4 {[%clk 0:01:06]} 32. hxg4 {[%clk 0:00:41]}  e4 {[%clk 0:01:06]} 33. Bxg7+ {[%clk 0:00:40]}  Kxg7 {[%clk 0:01:07]} 34. Qh3 {[%clk 0:00:35]}  Ne5 {[%clk 0:01:06]} 35. Kg2 {[%clk 0:00:32]}  Qxg4+ {[%clk 0:01:06]} 36. Qxg4+ {[%clk 0:00:31]}  Nxg4 {[%clk 0:01:07]} 37. Rd1 {[%clk 0:00:30]}  Ne5 {[%clk 0:01:06]} 38. Rd4 {[%clk 0:00:27]}  f5 {[%clk 0:01:05]} 39. a4 {[%clk 0:00:27]}  Kf6 {[%clk 0:01:03]} 40. Rd6+ {[%clk 0:00:25]}  Re6 {[%clk 0:01:03]} 41. Rd8 {[%clk 0:00:24]}  Re7 {[%clk 0:01:04]} 42. Rf8+ {[%clk 0:00:23]}  Ke6 {[%clk 0:01:04]} 43. Rg8 {[%clk 0:00:20]}  Nd3 {[%clk 0:01:01]} 44. b5 {[%clk 0:00:19]}  Nxc5 {[%clk 0:01:01]} 45. bxc6 {[%clk 0:00:18]}  bxc6 {[%clk 0:01:02]} 46. a5 {[%clk 0:00:18]}  Ra7 {[%clk 0:01:02]} 47. Rc8 {[%clk 0:00:15]}  Kd6 {[%clk 0:01:00]} 48. Rf8 {[%clk 0:00:14]}  Ke5 {[%clk 0:00:59]} 49. Re8+ {[%clk 0:00:14]}  Ne6 {[%clk 0:00:59]} 50. Rc8 {[%clk 0:00:13]}  c5 {[%clk 0:01:00]} 51. Rh8 {[%clk 0:00:11]}  Rxa5 {[%clk 0:01:00]} 52. Rxh7 {[%clk 0:00:11]}  c4 {[%clk 0:01:01]} 53. Rh8 {[%clk 0:00:07]}  Rc5 {[%clk 0:01:02]} 0-1


[Site "https://www.chess.com"]

[Event "Titled Tuesday Blitz November 15 Late 2022"]
[White "Gonzalez, Francisco Silva"]
[Black "Krasteva, Beloslava"]
[WhiteFideId "1512285"]
[BlackFideId "2922029"]
[WhiteElo "2159"]
[BlackElo "2187"]
[Result "1-0"]
[Round "06"]
[TimeControl "180+1"]
[Date "2022.11.16"]
[WhiteClock "0:02:45"]
[BlackClock "0:01:26"]

1. d4 {[%clk 0:03:00]}  Nf6 {[%clk 0:02:57]} 2. c4 {[%clk 0:03:00]}  e6 {[%clk 0:02:52]} 3. Nc3 {[%clk 0:02:59]}  Bb4 {[%clk 0:02:47]} 4. a3 {[%clk 0:02:59]}  Bxc3+ {[%clk 0:02:46]} 5. bxc3 {[%clk 0:03:00]}  d6 {[%clk 0:02:38]} 6. f3 {[%clk 0:02:59]}  c5 {[%clk 0:02:35]} 7. e4 {[%clk 0:02:59]}  e5 {[%clk 0:02:34]} 8. Bg5 {[%clk 0:02:57]}  h6 {[%clk 0:02:28]} 9. Be3 {[%clk 0:02:56]}  b6 {[%clk 0:02:24]} 10. Bd3 {[%clk 0:02:54]}  Nc6 {[%clk 0:02:24]} 11. Ne2 {[%clk 0:02:54]}  Ba6 {[%clk 0:02:23]} 12. Qa4 {[%clk 0:02:50]}  cxd4 {[%clk 0:01:28]} 13. Qxc6+ {[%clk 0:02:46]}  Ke7 {[%clk 0:01:26]} 14. cxd4 {[%clk 0:02:45]} 1-0


[Site "https://www.chess.com"]

[Event "Titled Tuesday Blitz November 15 Late 2022"]
[White "Gubajdullin, Alexei"]
[Black "Urazayev, Arystanbek"]
[WhiteFideId "4141202"]
[BlackFideId "13709810"]
[WhiteElo "2230"]
[BlackElo "2441"]
[Result "1-0"]
[Round "06"]
[TimeControl "180+1"]
[Date "2022.11.16"]
[WhiteClock "0:00:18"]
[BlackClock "0:00:03"]

1. Nf3 {[%clk 0:03:00]}  Nf6 {[%clk 0:03:00]} 2. c4 {[%clk 0:02:57]}  g6 {[%clk 0:03:01]} 3. b4 {[%clk 0:02:55]}  Bg7 {[%clk 0:03:01]} 4. Bb2 {[%clk 0:02:54]}  O-O {[%clk 0:03:01]} 5. g3 {[%clk 0:02:55]}  b6 {[%clk 0:03:00]} 6. Bg2 {[%clk 0:02:55]}  Bb7 {[%clk 0:03:00]} 7. O-O {[%clk 0:02:55]}  e6 {[%clk 0:03:00]} 8. d3 {[%clk 0:02:46]}  d6 {[%clk 0:02:57]} 9. b5 {[%clk 0:02:42]}  Nbd7 {[%clk 0:02:55]} 10. Nc3 {[%clk 0:02:37]}  Nc5 {[%clk 0:02:51]} 11. a4 {[%clk 0:02:33]}  a5 {[%clk 0:02:51]} 12. Nd4 {[%clk 0:02:14]}  Bxg2 {[%clk 0:02:51]} 13. Kxg2 {[%clk 0:02:14]}  e5 {[%clk 0:02:41]} 14. Nc6 {[%clk 0:02:13]}  Qd7 {[%clk 0:02:41]} 15. Nd5 {[%clk 0:02:07]}  Nxd5 {[%clk 0:02:35]} 16. cxd5 {[%clk 0:02:07]}  f5 {[%clk 0:02:35]} 17. Ba3 {[%clk 0:02:02]}  f4 {[%clk 0:02:30]} 18. f3 {[%clk 0:01:57]}  Kh8 {[%clk 0:02:24]} 19. Bxc5 {[%clk 0:01:43]}  bxc5 {[%clk 0:02:24]} 20. Qb3 {[%clk 0:01:43]}  h5 {[%clk 0:02:15]} 21. Qc4 {[%clk 0:01:35]}  Kh7 {[%clk 0:02:00]} 22. Qe4 {[%clk 0:01:31]}  Bh6 {[%clk 0:01:48]} 23. Rab1 {[%clk 0:01:20]}  Rac8 {[%clk 0:01:31]} 24. b6 {[%clk 0:01:16]}  cxb6 {[%clk 0:01:31]} 25. Rxb6 {[%clk 0:01:16]}  Bg7 {[%clk 0:01:29]} 26. Rfb1 {[%clk 0:01:07]}  Rc7 {[%clk 0:01:29]} 27. Nxa5 {[%clk 0:01:03]}  Ra8 {[%clk 0:01:29]} 28. Nc6 {[%clk 0:00:55]}  Qf7 {[%clk 0:00:58]} 29. a5 {[%clk 0:00:54]}  Qe8 {[%clk 0:00:39]} 30. a6 {[%clk 0:00:51]}  Qc8 {[%clk 0:00:39]} 31. Rb7 {[%clk 0:00:38]}  Rxa6 {[%clk 0:00:35]} 32. Ne7 {[%clk 0:00:38]}  Rxe7 {[%clk 0:00:07]} 33. Rxe7 {[%clk 0:00:37]}  h4 {[%clk 0:00:06]} 34. Rbb7 {[%clk 0:00:35]}  h3+ {[%clk 0:00:06]} 35. Kf2 {[%clk 0:00:34]}  fxg3+ {[%clk 0:00:06]} 36. Kxg3 {[%clk 0:00:33]}  Qf8 {[%clk 0:00:05]} 37. Qh4+ {[%clk 0:00:29]}  Kg8 {[%clk 0:00:05]} 38. Rxg7+ {[%clk 0:00:29]}  Qxg7 {[%clk 0:00:05]} 39. Rxg7+ {[%clk 0:00:28]}  Kxg7 {[%clk 0:00:06]} 40. Qe7+ {[%clk 0:00:28]}  Kh6 {[%clk 0:00:06]} 41. Qf8+ {[%clk 0:00:28]}  Kg5 {[%clk 0:00:06]} 42. Qe7+ {[%clk 0:00:27]}  Kh6 {[%clk 0:00:06]} 43. Kg4 {[%clk 0:00:25]}  Ra2 {[%clk 0:00:04]} 44. Qxd6 {[%clk 0:00:25]}  Rxe2 {[%clk 0:00:04]} 45. Kxh3 {[%clk 0:00:24]}  Kg5 {[%clk 0:00:04]} 46. Qe7+ {[%clk 0:00:23]}  Kf4 {[%clk 0:00:04]} 47. d6 {[%clk 0:00:21]}  Kxf3 {[%clk 0:00:02]} 48. d7 {[%clk 0:00:21]}  g5 {[%clk 0:00:01]} 49. Qf6+ {[%clk 0:00:20]}  Ke3 {[%clk 0:00:02]} 50. Qxg5+ {[%clk 0:00:20]}  Kf2 {[%clk 0:00:02]} 51. d8=Q {[%clk 0:00:19]}  e4 {[%clk 0:00:03]} 52. Qdf6+ {[%clk 0:00:18]}  Ke1 {[%clk 0:00:03]} 53. Qc1# {[%clk 0:00:18]} 1-0


[Site "https://www.chess.com"]

[Event "Titled Tuesday Blitz November 15 Late 2022"]
[White "Hansen, Eric"]
[Black "He, Samuel"]
[WhiteFideId "2606771"]
[BlackFideId "2087235"]
[WhiteElo "2568"]
[BlackElo "2607"]
[Result "0-1"]
[Round "06"]
[TimeControl "180+1"]
[Date "2022.11.16"]
[WhiteClock "0:00:01"]
[BlackClock "0:00:14"]

1. Nf3 {[%clk 0:00:21]}  Nf6 {[%clk 0:02:58]} 2. g3 {[%clk 0:00:21]}  b5 {[%clk 0:02:57]} 3. Bg2 {[%clk 0:00:22]}  Bb7 {[%clk 0:02:58]} 4. O-O {[%clk 0:00:23]}  e6 {[%clk 0:02:58]} 5. d3 {[%clk 0:00:23]}  Be7 {[%clk 0:02:58]} 6. e4 {[%clk 0:00:24]}  d6 {[%clk 0:02:58]} 7. Re1 {[%clk 0:00:24]}  Nbd7 {[%clk 0:02:57]} 8. Nc3 {[%clk 0:00:25]}  b4 {[%clk 0:02:56]} 9. Ne2 {[%clk 0:00:25]}  e5 {[%clk 0:02:54]} 10. Ng5 {[%clk 0:00:25]}  h6 {[%clk 0:02:50]} 11. Nh3 {[%clk 0:00:25]}  Nc5 {[%clk 0:02:34]} 12. f4 {[%clk 0:00:24]}  a5 {[%clk 0:02:31]} 13. Nf2 {[%clk 0:00:23]}  O-O {[%clk 0:02:05]} 14. Be3 {[%clk 0:00:24]}  Na4 {[%clk 0:01:52]} 15. Rb1 {[%clk 0:00:23]}  c5 {[%clk 0:01:47]} 16. Qd2 {[%clk 0:00:23]}  Qc7 {[%clk 0:01:40]} 17. b3 {[%clk 0:00:23]}  Nb6 {[%clk 0:01:36]} 18. g4 {[%clk 0:00:23]}  d5 {[%clk 0:01:17]} 19. fxe5 {[%clk 0:00:23]}  Qxe5 {[%clk 0:01:15]} 20. d4 {[%clk 0:00:23]}  Qc7 {[%clk 0:01:09]} 21. e5 {[%clk 0:00:24]}  Ne4 {[%clk 0:01:06]} 22. Nxe4 {[%clk 0:00:22]}  dxe4 {[%clk 0:01:07]} 23. Rbd1 {[%clk 0:00:22]}  c4 {[%clk 0:00:58]} 24. Ng3 {[%clk 0:00:21]}  Nd5 {[%clk 0:00:38]} 25. Bxe4 {[%clk 0:00:18]}  Nc3 {[%clk 0:00:32]} 26. Bxb7 {[%clk 0:00:19]}  Qxb7 {[%clk 0:00:32]} 27. Ra1 {[%clk 0:00:18]}  Qf3 {[%clk 0:00:30]} 28. Qg2 {[%clk 0:00:15]}  Qxg4 {[%clk 0:00:28]} 29. bxc4 {[%clk 0:00:16]}  Bh4 {[%clk 0:00:23]} 30. Bf2 {[%clk 0:00:14]}  Rac8 {[%clk 0:00:21]} 31. c5 {[%clk 0:00:14]}  Rfd8 {[%clk 0:00:21]} 32. a3 {[%clk 0:00:15]}  Nd5 {[%clk 0:00:19]} 33. axb4 {[%clk 0:00:14]}  axb4 {[%clk 0:00:20]} 34. Re4 {[%clk 0:00:14]}  Nf4 {[%clk 0:00:19]} 35. Rxf4 {[%clk 0:00:06]}  Qxf4 {[%clk 0:00:19]} 36. Ne2 {[%clk 0:00:03]}  Bxf2+ {[%clk 0:00:18]} 37. Qxf2 {[%clk 0:00:04]}  Qd2 {[%clk 0:00:17]} 38. Rb1 {[%clk 0:00:02]}  Qxc2 {[%clk 0:00:16]} 39. Rxb4 {[%clk 0:00:02]}  Rc6 {[%clk 0:00:16]} 40. h3 {[%clk 0:00:01]}  Rg6+ {[%clk 0:00:16]} 41. Kh2 {[%clk 0:00:02]}  Ra8 {[%clk 0:00:15]} 42. Qf3 {[%clk 0:00:01]}  Ra2 {[%clk 0:00:13]} 43. Rb8+ {[%clk 0:00:01]}  Kh7 {[%clk 0:00:13]} 44. h4 {[%clk 0:00:01]}  Qxe2+ {[%clk 0:00:13]} 45. Qxe2 {[%clk 0:00:02]}  Rxe2+ {[%clk 0:00:14]} 46. Kh3 {[%clk 0:00:02]}  Re3+ {[%clk 0:00:14]} 47. Kh2 {[%clk 0:00:02]}  Re4 {[%clk 0:00:14]} 48. Kh3 {[%clk 0:00:01]}  Rxd4 {[%clk 0:00:14]} 0-1


[Site "https://www.chess.com"]

[Event "Titled Tuesday Blitz November 15 Late 2022"]
[White "Harshavardhan G B"]
[Black "Jones, Gawain C B"]
[WhiteFideId "25059009"]
[BlackFideId "409561"]
[WhiteElo "2333"]
[BlackElo "2657"]
[Result "1/2-1/2"]
[Round "06"]
[TimeControl "180+1"]
[Date "2022.11.15"]
[WhiteClock "0:00:45"]
[BlackClock "0:00:18"]

1. d4 {[%clk 0:03:00]}  Nf6 {[%clk 0:03:00]} 2. c4 {[%clk 0:03:00]}  g6 {[%clk 0:03:00]} 3. Nc3 {[%clk 0:02:59]}  Bg7 {[%clk 0:03:00]} 4. e4 {[%clk 0:03:00]}  d6 {[%clk 0:03:01]} 5. Nf3 {[%clk 0:03:00]}  O-O {[%clk 0:03:01]} 6. Be2 {[%clk 0:03:00]}  e5 {[%clk 0:02:58]} 7. d5 {[%clk 0:03:00]}  a5 {[%clk 0:02:57]} 8. Bg5 {[%clk 0:02:58]}  h6 {[%clk 0:02:55]} 9. Be3 {[%clk 0:02:57]}  Ng4 {[%clk 0:02:53]} 10. Bc1 {[%clk 0:02:57]}  f5 {[%clk 0:02:53]} 11. exf5 {[%clk 0:02:58]}  gxf5 {[%clk 0:02:43]} 12. g3 {[%clk 0:02:55]}  Na6 {[%clk 0:02:38]} 13. O-O {[%clk 0:02:54]}  Nc5 {[%clk 0:02:32]} 14. Nh4 {[%clk 0:02:54]}  Nf6 {[%clk 0:02:29]} 15. f4 {[%clk 0:02:52]}  e4 {[%clk 0:02:23]} 16. h3 {[%clk 0:02:49]}  Bd7 {[%clk 0:02:21]} 17. Be3 {[%clk 0:02:49]}  Kh7 {[%clk 0:02:17]} 18. Kh2 {[%clk 0:02:31]}  Rg8 {[%clk 0:02:16]} 19. Qd2 {[%clk 0:02:28]}  Qe7 {[%clk 0:02:11]} 20. Rg1 {[%clk 0:02:26]}  Bh8 {[%clk 0:02:01]} 21. Bd4 {[%clk 0:02:15]}  e3 {[%clk 0:01:49]} 22. Qxe3 {[%clk 0:02:10]}  Qxe3 {[%clk 0:01:48]} 23. Bxe3 {[%clk 0:02:11]}  Nfe4 {[%clk 0:01:46]} 24. Nxe4 {[%clk 0:02:08]}  Nxe4 {[%clk 0:01:42]} 25. Bd3 {[%clk 0:02:08]}  Rae8 {[%clk 0:01:37]} 26. Rae1 {[%clk 0:02:06]}  Bxb2 {[%clk 0:01:28]} 27. g4 {[%clk 0:02:00]}  Bc3 {[%clk 0:01:10]} 28. Re2 {[%clk 0:01:58]}  Bf6 {[%clk 0:01:10]} 29. Nxf5 {[%clk 0:01:50]}  Bxf5 {[%clk 0:01:10]} 30. gxf5 {[%clk 0:01:51]}  Nc3 {[%clk 0:01:07]} 31. Rxg8 {[%clk 0:01:45]}  Kxg8 {[%clk 0:01:04]} 32. Rg2+ {[%clk 0:01:37]}  Kf7 {[%clk 0:01:04]} 33. Bd2 {[%clk 0:01:35]}  a4 {[%clk 0:00:56]} 34. a3 {[%clk 0:01:32]}  Ne4 {[%clk 0:00:48]} 35. Bb4 {[%clk 0:01:30]}  Bh4 {[%clk 0:00:36]} 36. Re2 {[%clk 0:01:20]}  Nc5 {[%clk 0:00:25]} 37. Rxe8 {[%clk 0:01:20]}  Kxe8 {[%clk 0:00:26]} 38. Bc2 {[%clk 0:01:20]}  Ke7 {[%clk 0:00:24]} 39. Kg2 {[%clk 0:01:18]}  Bf6 {[%clk 0:00:22]} 40. Kf3 {[%clk 0:01:15]}  Bd4 {[%clk 0:00:22]} 41. Kg4 {[%clk 0:01:13]}  Kf6 {[%clk 0:00:23]} 42. Kh5 {[%clk 0:01:11]}  Kg7 {[%clk 0:00:23]} 43. Kg4 {[%clk 0:01:05]}  Kf6 {[%clk 0:00:17]} 44. Ba5 {[%clk 0:01:00]}  b6 {[%clk 0:00:17]} 45. Bb4 {[%clk 0:01:00]}  Bb2 {[%clk 0:00:14]} 46. Kh5 {[%clk 0:00:51]}  Kg7 {[%clk 0:00:14]} 47. Bxc5 {[%clk 0:00:51]}  bxc5 {[%clk 0:00:09]} 48. Bxa4 {[%clk 0:00:52]}  Bxa3 {[%clk 0:00:10]} 49. f6+ {[%clk 0:00:51]}  Kxf6 {[%clk 0:00:10]} 50. Kxh6 {[%clk 0:00:51]}  Bc1 {[%clk 0:00:11]} 51. Kh7 {[%clk 0:00:50]}  Bxf4 {[%clk 0:00:11]} 52. Kg8 {[%clk 0:00:50]}  Kg5 {[%clk 0:00:09]} 53. Bd1 {[%clk 0:00:49]}  Kh4 {[%clk 0:00:09]} 54. Bg4 {[%clk 0:00:48]}  Be5 {[%clk 0:00:10]} 55. Kf7 {[%clk 0:00:47]}  Kg5 {[%clk 0:00:10]} 56. Ke6 {[%clk 0:00:47]}  Kh4 {[%clk 0:00:11]} 57. Kd7 {[%clk 0:00:47]}  Kg5 {[%clk 0:00:12]} 58. Kxc7 {[%clk 0:00:47]}  Kh4 {[%clk 0:00:13]} 59. Kd7 {[%clk 0:00:47]}  Kg5 {[%clk 0:00:14]} 60. Ke6 {[%clk 0:00:47]}  Kh4 {[%clk 0:00:15]} 61. Kf5 {[%clk 0:00:47]}  Bg3 {[%clk 0:00:16]} 62. Kg6 {[%clk 0:00:46]}  Be5 {[%clk 0:00:17]} 63. Bd7 {[%clk 0:00:45]}  Bg3 {[%clk 0:00:18]} 1/2-1/2


[Site "https://www.chess.com"]

[Event "Titled Tuesday Blitz November 15 Late 2022"]
[White "Horcajuelo Rocamora, Martin"]
[Black "Annaberdiyev, Babageldi"]
[WhiteFideId "24573027"]
[BlackFideId "14000385"]
[WhiteElo "2094"]
[BlackElo "2332"]
[Result "0-1"]
[Round "06"]
[TimeControl "180+1"]
[Date "2022.11.16"]
[WhiteClock "0:00:50"]
[BlackClock "0:00:21"]

1. e4 {[%clk 0:03:00]}  e6 {[%clk 0:03:00]} 2. d4 {[%clk 0:02:59]}  d5 {[%clk 0:03:00]} 3. exd5 {[%clk 0:02:59]}  exd5 {[%clk 0:03:00]} 4. Bd3 {[%clk 0:03:00]}  Bd6 {[%clk 0:03:00]} 5. Nf3 {[%clk 0:03:01]}  Nc6 {[%clk 0:03:00]} 6. O-O {[%clk 0:02:58]}  Bg4 {[%clk 0:02:59]} 7. c3 {[%clk 0:02:57]}  Nge7 {[%clk 0:02:59]} 8. h3 {[%clk 0:02:57]}  Bh5 {[%clk 0:02:58]} 9. b4 {[%clk 0:02:57]}  Bg6 {[%clk 0:02:56]} 10. Bxg6 {[%clk 0:02:56]}  hxg6 {[%clk 0:02:57]} 11. Nbd2 {[%clk 0:02:56]}  Qd7 {[%clk 0:02:55]} 12. Nb3 {[%clk 0:02:55]}  O-O {[%clk 0:02:54]} 13. Re1 {[%clk 0:02:54]}  Nf5 {[%clk 0:02:53]} 14. g4 {[%clk 0:02:51]}  Nh6 {[%clk 0:02:45]} 15. Bxh6 {[%clk 0:02:48]}  gxh6 {[%clk 0:02:46]} 16. Qd2 {[%clk 0:02:49]}  Kg7 {[%clk 0:02:44]} 17. Kg2 {[%clk 0:02:48]}  Rae8 {[%clk 0:02:43]} 18. a4 {[%clk 0:02:47]}  b6 {[%clk 0:02:34]} 19. a5 {[%clk 0:02:37]}  Rxe1 {[%clk 0:02:33]} 20. Nxe1 {[%clk 0:02:34]}  Qe7 {[%clk 0:02:22]} 21. axb6 {[%clk 0:02:33]}  axb6 {[%clk 0:02:22]} 22. Nd3 {[%clk 0:02:33]}  Qf6 {[%clk 0:02:05]} 23. f4 {[%clk 0:02:31]}  Re8 {[%clk 0:02:04]} 24. Ne5 {[%clk 0:02:30]}  Ne7 {[%clk 0:01:56]} 25. Rf1 {[%clk 0:02:16]}  Ra8 {[%clk 0:01:37]} 26. Ra1 {[%clk 0:02:10]}  Rxa1 {[%clk 0:01:36]} 27. Nxa1 {[%clk 0:02:11]}  Qe6 {[%clk 0:01:35]} 28. Nc2 {[%clk 0:02:02]}  f6 {[%clk 0:01:35]} 29. Nf3 {[%clk 0:02:00]}  Qe4 {[%clk 0:01:35]} 30. Kf2 {[%clk 0:01:43]}  Bxf4 {[%clk 0:01:34]} 31. Qe2 {[%clk 0:01:41]}  f5 {[%clk 0:01:22]} 32. Qxe4 {[%clk 0:01:38]}  fxe4 {[%clk 0:01:23]} 33. Nfe1 {[%clk 0:01:38]}  g5 {[%clk 0:01:21]} 34. Ng2 {[%clk 0:01:37]}  Kf6 {[%clk 0:01:20]} 35. Nce3 {[%clk 0:01:36]}  Bxe3+ {[%clk 0:01:19]} 36. Nxe3 {[%clk 0:01:36]}  c6 {[%clk 0:01:18]} 37. Kg3 {[%clk 0:01:31]}  b5 {[%clk 0:01:18]} 38. h4 {[%clk 0:01:30]}  Ke6 {[%clk 0:01:18]} 39. h5 {[%clk 0:01:27]}  Kf6 {[%clk 0:01:15]} 40. Kf2 {[%clk 0:01:28]}  Kg7 {[%clk 0:01:09]} 41. Nf1 {[%clk 0:01:22]}  Nc8 {[%clk 0:01:08]} 42. Ne3 {[%clk 0:01:14]}  Nd6 {[%clk 0:01:08]} 43. Ke2 {[%clk 0:01:13]}  Kf6 {[%clk 0:01:08]} 44. Kf2 {[%clk 0:01:11]}  Ke6 {[%clk 0:01:05]} 45. Ke2 {[%clk 0:01:11]}  Kf7 {[%clk 0:01:06]} 46. Kf2 {[%clk 0:01:10]}  Kg7 {[%clk 0:01:06]} 47. Kg3 {[%clk 0:01:10]}  Nc4 {[%clk 0:00:59]} 48. Nf5+ {[%clk 0:01:09]}  Kh7 {[%clk 0:00:59]} 49. Kf2 {[%clk 0:01:09]}  Na3 {[%clk 0:00:55]} 50. Ne7 {[%clk 0:01:05]}  Nb1 {[%clk 0:00:56]} 51. Nxc6 {[%clk 0:01:05]}  Nxc3 {[%clk 0:00:56]} 52. Ne7 {[%clk 0:01:03]}  Kg7 {[%clk 0:00:48]} 53. Nf5+ {[%clk 0:01:03]}  Kh7 {[%clk 0:00:48]} 54. Ne3 {[%clk 0:01:03]}  Kg7 {[%clk 0:00:46]} 55. Ke1 {[%clk 0:01:04]}  Kf6 {[%clk 0:00:29]} 56. Kd2 {[%clk 0:01:03]}  Na2 {[%clk 0:00:29]} 57. Nxd5+ {[%clk 0:01:02]}  Ke6 {[%clk 0:00:30]} 58. Nc7+ {[%clk 0:01:02]}  Kf6 {[%clk 0:00:29]} 59. Na6 {[%clk 0:00:56]}  Ke6 {[%clk 0:00:28]} 60. Ke3 {[%clk 0:00:56]}  Kd5 {[%clk 0:00:28]} 61. Nc7+ {[%clk 0:00:56]}  Kc4 {[%clk 0:00:27]} 62. d5 {[%clk 0:00:55]}  Nxb4 {[%clk 0:00:27]} 63. d6 {[%clk 0:00:56]}  Nc6 {[%clk 0:00:25]} 64. Na6 {[%clk 0:00:52]}  b4 {[%clk 0:00:19]} 65. Nxb4 {[%clk 0:00:51]}  Kxb4 {[%clk 0:00:19]} 66. Kxe4 {[%clk 0:00:51]}  Kc5 {[%clk 0:00:20]} 67. Kf5 {[%clk 0:00:50]}  Kxd6 {[%clk 0:00:20]} 68. Kg6 {[%clk 0:00:50]}  Ke6 {[%clk 0:00:20]} 69. Kxh6 {[%clk 0:00:50]}  Kf6 {[%clk 0:00:21]} 70. Kh7 {[%clk 0:00:50]}  Ne5 {[%clk 0:00:21]} 0-1


[Site "https://www.chess.com"]

[Event "Titled Tuesday Blitz November 15 Late 2022"]
[White "Ibarra Jerez, Jose Carlos"]
[Black "Ghazarian, Kirk"]
[WhiteFideId "2226332"]
[BlackFideId "30908604"]
[WhiteElo "2638"]
[BlackElo "2346"]
[Result "1-0"]
[Round "06"]
[TimeControl "180+1"]
[Date "2022.11.15"]
[WhiteClock "0:00:46"]
[BlackClock "0:00:18"]

1. e4 {[%clk 0:03:00]}  c5 {[%clk 0:02:58]} 2. Nc3 {[%clk 0:03:00]}  Nc6 {[%clk 0:02:57]} 3. Nge2 {[%clk 0:03:00]}  d6 {[%clk 0:02:56]} 4. d4 {[%clk 0:03:00]}  cxd4 {[%clk 0:02:57]} 5. Nxd4 {[%clk 0:03:01]}  Nf6 {[%clk 0:02:58]} 6. Nd5 {[%clk 0:03:01]}  e6 {[%clk 0:02:49]} 7. Nxf6+ {[%clk 0:03:01]}  Qxf6 {[%clk 0:02:49]} 8. Nb5 {[%clk 0:03:01]}  Qd8 {[%clk 0:02:44]} 9. c4 {[%clk 0:03:01]}  Be7 {[%clk 0:02:43]} 10. Be3 {[%clk 0:03:01]}  O-O {[%clk 0:02:44]} 11. Be2 {[%clk 0:03:01]}  a6 {[%clk 0:02:44]} 12. Nc3 {[%clk 0:03:01]}  b6 {[%clk 0:02:41]} 13. O-O {[%clk 0:02:58]}  Qc7 {[%clk 0:02:37]} 14. Rc1 {[%clk 0:02:57]}  Rb8 {[%clk 0:02:35]} 15. Nd5 {[%clk 0:02:56]}  Qa7 {[%clk 0:02:31]} 16. Nxe7+ {[%clk 0:02:46]}  Qxe7 {[%clk 0:02:32]} 17. Qd2 {[%clk 0:02:45]}  Rd8 {[%clk 0:02:26]} 18. Rfd1 {[%clk 0:02:45]}  a5 {[%clk 0:02:18]} 19. b3 {[%clk 0:02:24]}  Ba6 {[%clk 0:02:18]} 20. h3 {[%clk 0:02:20]}  Rd7 {[%clk 0:02:07]} 21. Bg5 {[%clk 0:02:16]}  f6 {[%clk 0:02:05]} 22. Be3 {[%clk 0:02:16]}  Ne5 {[%clk 0:01:59]} 23. f4 {[%clk 0:02:16]}  Nf7 {[%clk 0:01:58]} 24. Kh2 {[%clk 0:02:04]}  Qd8 {[%clk 0:01:56]} 25. Bg4 {[%clk 0:02:04]}  Re7 {[%clk 0:01:53]} 26. a3 {[%clk 0:01:54]}  Bb7 {[%clk 0:01:47]} 27. Qd3 {[%clk 0:01:47]}  Qc7 {[%clk 0:01:40]} 28. b4 {[%clk 0:01:43]}  axb4 {[%clk 0:01:26]} 29. axb4 {[%clk 0:01:44]}  Bxe4 {[%clk 0:01:17]} 30. Qxe4 {[%clk 0:01:39]}  f5 {[%clk 0:01:17]} 31. Bxf5 {[%clk 0:01:39]}  exf5 {[%clk 0:01:18]} 32. Qd3 {[%clk 0:01:33]}  Rbe8 {[%clk 0:01:17]} 33. Bd4 {[%clk 0:01:32]}  Re4 {[%clk 0:01:14]} 34. Ba1 {[%clk 0:01:26]}  d5 {[%clk 0:01:08]} 35. Qg3 {[%clk 0:01:20]}  Qxf4 {[%clk 0:01:05]} 36. Qxf4 {[%clk 0:01:18]}  Rxf4 {[%clk 0:01:06]} 37. Rxd5 {[%clk 0:01:19]}  Re2 {[%clk 0:00:53]} 38. Bd4 {[%clk 0:01:09]}  Re6 {[%clk 0:00:27]} 39. Ra1 {[%clk 0:01:04]}  h6 {[%clk 0:00:22]} 40. Ra7 {[%clk 0:00:51]}  Rd6 {[%clk 0:00:19]} 41. Rxd6 {[%clk 0:00:49]}  Nxd6 {[%clk 0:00:20]} 42. Be5 {[%clk 0:00:48]}  Nc8 {[%clk 0:00:18]} 43. Rc7 {[%clk 0:00:46]} 1-0


[Site "https://www.chess.com"]